bitfinex/quotes_BTCUSD_20240605
["timestamp","ask_amount","ask_price","bid_price","bid_amount"]
[1717553225402,0.14441893,70905.0,70904.0,0.01432029]
[1717553227451,0.15441893,70905.0,70904.0,0.01432029]
[1717553227666,0.14441893,70905.0,70904.0,0.01432029]
[1717553227876,0.15441893,70905.0,70904.0,0.02832029]
[1717553228289,0.15441893,70905.0,70904.0,0.04232029]
[1717553228715,0.15441893,70905.0,70904.0,0.028]
[1717553228938,0.15441893,70905.0,70904.0,0.014]
[1717553229151,0.14441893,70905.0,70904.0,0.014]
[1717553229569,0.14441893,70905.0,70904.0,0.028]
[1717553230643,0.14441893,70905.0,70904.0,0.014]
[1717553231554,0.15441893,70905.0,70904.0,0.014]
[1717553231770,0.15441893,70905.0,70904.0,0.028]
[1717553232179,0.15441893,70905.0,70901.0,0.141041]
[1717553232388,0.15441893,70905.0,70904.0,0.028]
[1717553233366,0.14441893,70905.0,70904.0,0.028]
[1717553233560,0.14441893,70905.0,70904.0,0.014]
[1717553234019,0.14441893,70905.0,70904.0,0.042]
[1717553234437,0.14441893,70905.0,70904.0,0.014]
[1717553235002,0.14441893,70905.0,70901.0,0.141041]
[1717553235529,0.14441893,70905.0,70904.0,0.014]
[1717553235704,0.14441893,70905.0,70904.0,0.028]
[1717553236375,0.1612,70919.0,70907.0,0.01]
[1717553236513,0.1612,70919.0,70911.0,0.01]
[1717553236514,0.14441893,70917.0,70911.0,0.01]
[1717553236889,0.14441893,70917.0,70910.0,0.141022]
[1717553237352,0.14441893,70917.0,70910.0,0.151022]
[1717553237566,0.14441893,70917.0,70911.0,0.01]
[1717553238007,0.14441893,70917.0,70916.0,0.0668]
[1717553239830,0.14441893,70917.0,70912.0,0.01]
[1717553240236,0.14441893,70917.0,70911.0,0.151021]
[1717553240434,0.14441893,70917.0,70916.0,0.009]
[1717553240936,0.15441893,70917.0,70916.0,0.021]
[1717553241337,0.01,70913.0,70912.0,0.014]
[1717553241554,0.23601893,70913.0,70912.0,0.014]
[1717553241998,0.01,70912.0,70909.0,0.141025]
[1717553242228,0.14441893,70911.0,70909.0,0.141025]
[1717553244526,0.14441893,70911.0,70909.0,0.155025]
[1717553244740,0.15441893,70911.0,70909.0,0.169025]
[1717553246372,0.14441893,70911.0,70909.0,0.169025]
[1717553247375,0.14441893,70911.0,70909.0,0.028]
[1717553249409,0.2291,70924.0,70910.0,0.2445]
[1717553249616,0.2291,70924.0,70917.0,0.1671]
[1717553249617,0.01,70920.0,70917.0,0.1671]
[1717553249826,0.14441893,70919.0,70917.0,0.1671]
[1717553250255,0.14441893,70919.0,70911.0,0.1671]
[1717553250675,0.15441893,70919.0,70911.0,0.1671]
[1717553251096,0.15441893,70919.0,70917.0,0.012]
[1717553251502,0.01,70918.0,70917.0,0.012]
[1717553251727,0.14441893,70918.0,70917.0,0.012]
[1717553251926,0.15441893,70918.0,70917.0,0.012]
[1717553252998,0.2402,70914.0,70910.0,0.01432029]
[1717553253198,0.14441893,70913.0,70910.0,0.01432029]
[1717553253394,0.01,70912.0,70910.0,0.01432029]
[1717553253758,0.01,70911.0,70910.0,0.01432029]
[1717553254413,0.01,70911.0,70910.0,0.02832029]
[1717553254623,0.14441893,70912.0,70910.0,0.04232029]
[1717553254624,0.15441893,70912.0,70910.0,0.04232029]
[1717553254800,0.15441893,70912.0,70910.0,0.02832029]
[1717553255039,0.14441893,70912.0,70910.0,0.04232029]
[1717553256816,0.14441893,70912.0,70910.0,0.05632029]
[1717553257182,0.14441893,70912.0,70910.0,0.04232029]
[1717553257387,0.14441893,70912.0,70910.0,0.08438689]
[1717553258294,0.14441893,70912.0,70911.0,0.06309991]
[1717553258715,0.14441893,70912.0,70911.0,0.07309991]
[1717553258923,0.140995,70925.0,70915.0,0.01]
[1717553259135,0.01676249,70926.0,70919.0,0.01]
[1717553259136,0.14441893,70924.0,70919.0,0.01]
[1717553259347,0.14441893,70924.0,70922.0,0.05219611]
[1717553259562,0.14441893,70924.0,70923.0,0.04219611]
[1717553259771,0.14441893,70924.0,70923.0,0.08413321]
[1717553259982,0.14441893,70924.0,70923.0,0.0668]
[1717553260204,0.14441893,70924.0,70923.0,0.08437634]
[1717553260445,0.14441893,70924.0,70923.0,0.15117634]
[1717553261336,0.14441893,70924.0,70923.0,0.0808]
[1717553261565,0.14441893,70924.0,70923.0,0.17217634]
[1717553261776,0.14441893,70924.0,70923.0,0.16517634]
[1717553262036,0.14441893,70924.0,70923.0,0.16516439]
[1717553262263,0.14441893,70924.0,70923.0,0.0908]
[1717553262702,0.14441893,70924.0,70923.0,0.0668]
[1717553262905,0.14441893,70924.0,70923.0,0.13006439]
[1717553263116,0.14441893,70924.0,70923.0,0.15806439]
[1717553263321,0.14441893,70924.0,70923.0,0.0948]
[1717553263531,0.14441893,70924.0,70923.0,0.1048]
[1717553263739,0.14441893,70924.0,70923.0,0.16806439]
[1717553263953,0.14441893,70924.0,70923.0,0.15806439]
[1717553264143,0.14441893,70924.0,70923.0,0.09126439]
[1717553264352,0.14441893,70924.0,70923.0,0.028]
[1717553264559,0.14441893,70924.0,70923.0,0.0948]
[1717553264762,0.14441893,70924.0,70923.0,0.15806439]
[1717553265399,0.14441893,70924.0,70923.0,0.13695495]
[1717553265592,0.14441893,70924.0,70923.0,0.14695495]
[1717553265813,0.14441893,70924.0,70923.0,0.0948]
[1717553266243,0.14441893,70924.0,70923.0,0.13695043]
[1717553266881,0.14441893,70924.0,70923.0,0.27794743]
[1717553267348,0.14441893,70924.0,70923.0,0.27794813]
[1717553267803,0.14441893,70924.0,70923.0,0.235797]
[1717553268207,0.14441893,70924.0,70923.0,0.27793697]
[1717553268410,0.14441893,70924.0,70923.0,0.245797]
[1717553268619,0.14441893,70924.0,70923.0,0.235797]
[1717553271865,0.00043682,70929.0,70928.0,0.140988]
[1717553272070,0.14485575,70929.0,70928.0,0.150988]
[1717553272481,0.14485575,70929.0,70928.0,0.21417179]
[1717553272687,0.14485575,70929.0,70928.0,0.150988]
[1717553272920,0.14485575,70929.0,70928.0,0.207788]
[1717553273145,0.14485575,70929.0,70928.0,0.217788]
[1717553273373,0.14485575,70929.0,70928.0,0.27389882]
[1717553273805,0.14485575,70929.0,70928.0,0.245788]
[1717553274450,0.14485575,70929.0,70928.0,0.235788]
[1717553274573,0.14485575,70929.0,70928.0,0.231788]
[1717553275009,0.14485575,70929.0,70928.0,0.217788]
[1717553275450,0.14485575,70929.0,70928.0,0.231788]
[1717553275603,0.00043682,70929.0,70928.0,0.231788]
[1717553276400,0.00043682,70929.0,70928.0,0.245788]
[1717553281638,0.00043682,70929.0,70928.0,0.168988]
[1717553281839,0.00043682,70929.0,70928.0,0.235788]
[1717553283071,0.00043682,70929.0,70928.0,0.245788]
[1717553283941,0.00043682,70929.0,70928.0,0.235788]
[1717553285195,0.00043682,70929.0,70928.0,0.245788]
[1717553285597,0.00043682,70929.0,70928.0,0.235788]
[1717553286806,0.00043682,70929.0,70928.0,0.168988]
[1717553287023,0.14485575,70929.0,70928.0,0.0948]
[1717553287254,0.14485575,70929.0,70928.0,0.235788]
[1717553288277,0.14485575,70929.0,70928.0,0.0948]
[1717553288386,0.14485575,70929.0,70928.0,0.0898]
[1717553288607,0.15485575,70929.0,70928.0,0.0898]
[1717553288807,0.14485575,70929.0,70928.0,0.0898]
[1717553291915,0.15485575,70929.0,70928.0,0.0898]
[1717553292116,0.14485575,70929.0,70928.0,0.0898]
[1717553292992,0.15485575,70929.0,70928.0,0.0898]
[1717553293189,0.14485575,70929.0,70928.0,0.0898]
[1717553293524,0.15485575,70929.0,70928.0,0.0898]
[1717553293734,0.14485575,70929.0,70928.0,0.0898]
[1717553293941,0.15485575,70929.0,70928.0,0.0898]
[1717553294377,0.15485575,70929.0,70928.0,0.023]
[1717553294582,0.15485575,70929.0,70928.0,0.0898]
[1717553294985,0.15485575,70929.0,70928.0,0.023]
[1717553295233,0.15485575,70929.0,70928.0,0.0898]
[1717553296258,0.14485575,70929.0,70928.0,0.0898]
[1717553296873,0.00043682,70929.0,70928.0,0.520488]
[1717553297123,0.00043682,70929.0,70928.0,0.720488]
[1717553297348,0.00043682,70929.0,70928.0,1.002464]
[1717553297546,0.00043682,70929.0,70928.0,0.702464]
[1717553297752,0.00043682,70929.0,70928.0,0.802464]
[1717553297996,0.00043682,70929.0,70928.0,0.702464]
[1717553298214,0.00043682,70929.0,70928.0,0.735664]
[1717553298426,0.00043682,70929.0,70928.0,0.802464]
[1717553299712,0.00043682,70929.0,70928.0,0.793464]
[1717553299955,0.00043682,70929.0,70928.0,0.779464]
[1717553300168,0.00043682,70929.0,70928.0,0.807464]
[1717553300617,0.00043682,70929.0,70928.0,0.80841]
[1717553300826,0.00043682,70929.0,70928.0,1.05052469]
[1717553301047,0.00043682,70929.0,70928.0,1.03652469]
[1717553301272,0.00043682,70929.0,70928.0,0.85052469]
[1717553301501,0.00043682,70929.0,70928.0,0.85758203]
[1717553301724,0.00129682,70929.0,70928.0,0.87158203]
[1717553301961,0.00129682,70929.0,70928.0,0.80841]
[1717553302172,0.00129682,70929.0,70928.0,0.79441]
[1717553302597,0.00129682,70929.0,70928.0,0.80841]
[1717553303245,0.00129682,70929.0,70928.0,0.69441]
[1717553303477,0.00129682,70929.0,70928.0,0.89263938]
[1717553303657,0.00129682,70929.0,70928.0,0.79263938]
[1717553303908,0.00129682,70929.0,70928.0,0.89263938]
[1717553304284,0.00129682,70929.0,70928.0,0.79263938]
[1717553304446,0.00129682,70929.0,70928.0,0.89263938]
[1717553304643,0.00129682,70929.0,70928.0,0.78263938]
[1717553305007,0.00129682,70929.0,70928.0,0.52096338]
[1717553305201,0.00129682,70929.0,70928.0,0.436734]
[1717553306768,0.00129682,70929.0,70928.0,0.38893288]
[1717553307030,0.00129682,70929.0,70928.0,0.436734]
[1717553307196,0.00129682,70929.0,70928.0,0.47893245]
[1717553307375,0.00129682,70929.0,70928.0,0.37893245]
[1717553308010,0.00129682,70929.0,70928.0,0.48893245]
[1717553308323,0.00129682,70929.0,70928.0,0.47893459]
[1717553308908,0.00129682,70929.0,70928.0,0.446734]
[1717553309092,0.00129682,70929.0,70928.0,0.346734]
[1717553309650,0.38801575,70929.0,70928.0,0.028946]
[1717553309857,0.39801575,70929.0,70928.0,0.028946]
[1717553310664,0.39801575,70929.0,70928.0,0.014946]
[1717553311039,0.39801575,70929.0,70928.0,0.028946]
[1717553311250,0.39801575,70929.0,70928.0,0.014946]
[1717553311497,0.39801575,70929.0,70928.0,0.028946]
[1717553311707,0.39801575,70929.0,70928.0,0.042946]
[1717553311919,0.39801575,70929.0,70928.0,0.028946]
[1717553312312,0.39801575,70929.0,70928.0,0.042946]
[1717553312631,0.53900175,70929.0,70928.0,0.042946]
[1717553312829,0.53900175,70929.0,70928.0,0.109746]
[1717553313034,0.39801575,70929.0,70928.0,0.109746]
[1717553313402,0.38801575,70929.0,70928.0,0.109746]
[1717553313618,0.22471575,70929.0,70928.0,0.109746]
[1717553313831,0.22471575,70929.0,70928.0,0.081746]
[1717553314032,0.22471575,70929.0,70928.0,0.067746]
[1717553314237,0.23471575,70929.0,70928.0,0.074746]
[1717553314443,0.23571575,70929.0,70928.0,0.088746]
[1717553314863,0.23471575,70929.0,70928.0,0.074746]
[1717553315311,0.23571575,70929.0,70928.0,0.085746]
[1717553317430,0.23571575,70929.0,70928.0,0.018946]
[1717553317634,0.23571575,70929.0,70928.0,0.085746]
[1717553319031,0.23571575,70929.0,70928.0,0.018946]
[1717553319238,0.37670175,70929.0,70928.0,0.018946]
[1717553319902,0.37670175,70929.0,70928.0,0.085746]
[1717553319903,0.39871575,70929.0,70928.0,0.085746]
[1717553320525,0.00229682,70929.0,70928.0,0.085746]
[1717553320738,0.00229682,70929.0,70928.0,0.226734]
[1717553320983,0.00229682,70929.0,70928.0,0.336734]
[1717553321401,0.00229682,70929.0,70928.0,0.37892466]
[1717553321622,0.00129682,70929.0,70928.0,0.36792466]
[1717553321824,0.00229682,70929.0,70928.0,0.38192466]
[1717553322263,0.00229682,70929.0,70928.0,0.31512466]
[1717553322506,0.00229682,70929.0,70928.0,0.37492466]
[1717553322787,0.00229682,70929.0,70928.0,0.38892466]
[1717553322994,0.00229682,70929.0,70928.0,0.36492466]
[1717553323353,0.00129682,70929.0,70928.0,0.36092466]
[1717553323763,0.00129682,70929.0,70928.0,0.38892466]
[1717553323991,0.00129682,70929.0,70928.0,0.336734]
[1717553324829,0.00129682,70929.0,70928.0,0.346734]
[1717553327757,0.00129682,70929.0,70928.0,0.336734]
[1717553328838,0.00129682,70929.0,70928.0,0.269934]
[1717553329060,0.00129682,70929.0,70928.0,0.336734]
[1717553330173,0.00129682,70929.0,70928.0,0.269934]
[1717553330451,0.00129682,70929.0,70928.0,0.336734]
[1717553330879,0.00129682,70929.0,70928.0,0.269934]
[1717553331099,0.00129682,70929.0,70928.0,0.336734]
[1717553331325,0.00129682,70929.0,70928.0,0.346734]
[1717553331761,0.00129682,70929.0,70928.0,0.336734]
[1717553331975,0.00129682,70929.0,70928.0,0.346734]
[1717553334934,0.00129682,70929.0,70928.0,0.352261]
[1717553336342,0.00129682,70929.0,70928.0,0.39445468]
[1717553336543,0.00129682,70929.0,70928.0,0.352261]
[1717553338217,0.00129682,70929.0,70928.0,0.39444395]
[1717553338844,0.00129682,70929.0,70928.0,0.31764395]
[1717553339085,0.00129682,70929.0,70928.0,0.39444395]
[1717553341041,0.00129682,70929.0,70928.0,0.38444395]
[1717553341260,0.00129682,70929.0,70928.0,0.39444395]
[1717553341903,0.00129682,70929.0,70928.0,0.67641995]
[1717553344755,0.00129682,70929.0,70928.0,0.66641995]
[1717553345194,0.00129682,70929.0,70928.0,0.67641995]
[1717553345389,0.00129682,70929.0,70928.0,0.31764395]
[1717553345652,0.00129682,70929.0,70928.0,0.38444395]
[1717553346011,0.00129682,70929.0,70928.0,0.31764395]
[1717553346295,0.00129682,70929.0,70928.0,0.38444395]
[1717553347311,0.15571575,70929.0,70928.0,0.034473]
[1717553347518,0.15571575,70929.0,70928.0,0.101273]
[1717553347519,0.39731575,70929.0,70928.0,0.101273]
[1717553348249,0.20676775,70929.0,70928.0,0.034473]
[1717553348453,0.20676775,70929.0,70928.0,0.020473]
[1717553348454,0.54970175,70929.0,70928.0,0.020473]
[1717553348650,0.54970175,70929.0,70928.0,0.034473]
[1717553348851,0.56970175,70929.0,70928.0,0.034473]
[1717553349039,0.62379858,70929.0,70928.0,0.034473]
[1717553349246,0.62379858,70929.0,70928.0,0.020473]
[1717553349468,0.62379858,70929.0,70928.0,0.019473]
[1717553349689,0.62379858,70929.0,70928.0,0.033473]
[1717553350632,0.64103758,70929.0,70928.0,0.033473]
[1717553351023,0.64103758,70929.0,70928.0,0.020473]
[1717553351491,0.56694075,70929.0,70928.0,0.022473]
[1717553351688,0.58694075,70929.0,70928.0,0.022473]
[1717553352339,0.07222824,70931.0,70928.0,0.022473]
[1717553352340,0.02,70939.0,70928.0,0.022473]
[1717553352546,0.00557,71826.0,70928.0,0.022473]
[1717553352987,0.00863,70986.0,70973.0,0.240898]
[1717553353223,0.00863,70986.0,70983.0,0.240878]
[1717553353456,0.00863,70986.0,70983.0,0.638578]
[1717553353687,0.00863,70986.0,70983.0,1.068578]
[1717553354134,0.00579373,70984.0,70983.0,1.068578]
[1717553354343,0.00579373,70984.0,70983.0,0.42]
[1717553354574,0.00579373,70984.0,70983.0,0.4]
[1717553354783,0.00579373,70984.0,70983.0,0.20483446]
[1717553354784,0.15021266,70984.0,70983.0,0.20483446]
[1717553354991,0.15021266,70984.0,70983.0,0.1]
[1717553355190,0.15021266,70984.0,70983.0,0.3668]
[1717553355402,0.15021266,70984.0,70983.0,0.4008]
[1717553355638,0.15021266,70984.0,70983.0,0.3808]
[1717553355847,0.15021266,70984.0,70983.0,0.3668]
[1717553356076,0.15021266,70984.0,70983.0,0.1]
[1717553356077,0.17321266,70984.0,70983.0,0.1]
[1717553356306,0.44445515,70984.0,70983.0,0.114]
[1717553356520,0.48124346,70984.0,70983.0,0.114]
[1717553356722,0.48124346,70984.0,70983.0,0.028]
[1717553357572,0.48124346,70984.0,70983.0,0.014]
[1717553357793,0.48124346,70984.0,70983.0,0.028]
[1717553358003,0.48124346,70984.0,70983.0,0.128]
[1717553358225,0.48124346,70984.0,70983.0,0.014]
[1717553358433,0.40381266,70984.0,70983.0,0.114]
[1717553358644,0.40381266,70984.0,70983.0,0.015]
[1717553358853,0.40381266,70984.0,70983.0,0.115]
[1717553359289,0.40381266,70984.0,70983.0,0.101]
[1717553359499,0.40381266,70984.0,70983.0,0.102]
[1717553359925,0.40381266,70984.0,70983.0,0.002]
[1717553360132,0.40381266,70984.0,70983.0,0.102]
[1717553360546,0.40381266,70984.0,70983.0,0.002]
[1717553360799,0.40381266,70984.0,70983.0,0.102]
[1717553362573,0.40381266,70984.0,70983.0,0.002]
[1717553362796,0.40381266,70984.0,70983.0,0.102]
[1717553365223,0.54468866,70984.0,70983.0,0.102]
[1717553367229,0.54468866,70984.0,70983.0,0.002]
[1717553367441,0.54468866,70984.0,70983.0,0.102]
[1717553367839,0.54468866,70984.0,70983.0,0.002]
[1717553368045,0.54468866,70984.0,70983.0,0.102]
[1717553370270,0.54468866,70984.0,70983.0,0.002]
[1717553370444,0.54468866,70984.0,70983.0,0.102]
[1717553370663,0.40381266,70984.0,70983.0,0.102]
[1717553371763,0.54468866,70984.0,70983.0,0.102]
[1717553372854,0.54468866,70984.0,70983.0,0.002]
[1717553373062,0.54468866,70984.0,70983.0,0.102]
[1717553373740,0.40381266,70984.0,70983.0,0.102]
[1717553376028,0.40381266,70984.0,70983.0,0.302]
[1717553376843,0.40381266,70984.0,70983.0,0.102]
[1717553377459,0.40381266,70984.0,70983.0,0.302]
[1717553377893,0.40381266,70984.0,70983.0,0.102]
[1717553378474,0.40381266,70984.0,70983.0,0.002]
[1717553378718,0.40381266,70984.0,70983.0,0.102]
[1717553379358,0.54468866,70984.0,70983.0,0.102]
[1717553381951,0.54468866,70984.0,70983.0,0.002]
[1717553382172,0.54468866,70984.0,70983.0,0.102]
[1717553383862,0.54468866,70984.0,70983.0,0.1]
[1717553384125,0.140878,70983.0,70982.0,0.1]
[1717553384333,0.30829693,70983.0,70982.0,0.1]
[1717553384960,0.31973142,70983.0,70982.0,0.1]
[1717553385200,0.14088,70982.0,70981.0,0.1]
[1717553385320,0.30829893,70982.0,70981.0,0.1]
[1717553386309,0.140882,70981.0,70980.0,0.1]
[1717553386528,0.30830093,70981.0,70980.0,0.1]
[1717553388099,0.30830093,70981.0,70980.0,0.104]
[1717553388934,0.30830093,70981.0,70980.0,0.304]
[1717553389131,0.30830093,70981.0,70980.0,0.305]
[1717553389332,0.30830093,70981.0,70980.0,0.105]
[1717553389567,0.30830093,70981.0,70980.0,0.305]
[1717553389987,0.30830093,70981.0,70980.0,0.105]
[1717553390423,0.30830093,70981.0,70980.0,0.305]
[1717553391253,0.30830093,70981.0,70980.0,0.105]
[1717553395673,0.69006593,70981.0,70980.0,0.005]
[1717553396021,0.69006593,70981.0,70966.0,0.06279147]
[1717553396022,0.140902,70971.0,70970.0,0.1]
[1717553396243,0.140902,70971.0,70965.0,0.1]
[1717553396244,0.140912,70966.0,70965.0,0.1]
[1717553396452,2.017805,70971.0,70970.0,0.1]
[1717553396880,0.68522393,70971.0,70970.0,0.1]
[1717553397120,0.140912,70966.0,70965.0,0.1]
[1717553397328,0.163912,70966.0,70965.0,0.1]
[1717553398543,0.140914,70965.0,70964.0,0.1]
[1717553398681,0.163914,70965.0,70964.0,0.1]
[1717553400238,0.164914,70965.0,70964.0,0.107]
[1717553400867,0.30933293,70965.0,70964.0,0.107]
[1717553401239,0.30933293,70965.0,70964.0,0.112]
[1717553401608,0.30933293,70965.0,70964.0,0.012]
[1717553401929,0.30933293,70965.0,70964.0,0.112]
[1717553403148,0.87299093,70965.0,70964.0,0.012]
[1717553403360,0.87299093,70965.0,70961.0,0.1]
[1717553403361,0.14092,70962.0,70961.0,0.1]
[1717553403588,0.140924,70960.0,70959.0,0.1]
[1717553403809,0.140926,70959.0,70958.0,0.1]
[1717553403979,0.28534493,70959.0,70958.0,0.1]
[1717553404247,0.30834493,70959.0,70958.0,0.1]
[1717553404447,0.14093,70957.0,70956.0,0.1]
[1717553404695,0.30834893,70957.0,70956.0,0.1]
[1717553405785,0.59020893,70957.0,70956.0,0.1]
[1717553406247,0.59020893,70957.0,70956.0,0.105]
[1717553406524,0.59020893,70957.0,70956.0,0.012]
[1717553406525,0.59120893,70957.0,70956.0,0.012]
[1717553406746,0.59120893,70957.0,70956.0,0.112]
[1717553406954,0.30834893,70957.0,70956.0,0.105]
[1717553407179,0.30934893,70957.0,70956.0,0.111]
[1717553407390,0.30934893,70957.0,70956.0,0.011]
[1717553407595,0.30934893,70957.0,70956.0,0.106]
[1717553407992,0.30934893,70957.0,70956.0,0.109]
[1717553408237,0.30934893,70957.0,70956.0,0.106]
[1717553408446,0.30834893,70957.0,70956.0,0.101]
[1717553408885,0.30834893,70957.0,70956.0,0.105]
[1717553408886,0.59020893,70957.0,70956.0,0.105]
[1717553409298,0.59020893,70957.0,70956.0,0.005]
[1717553409531,0.59020893,70957.0,70956.0,0.105]
[1717553411350,0.59020893,70957.0,70956.0,0.104]
[1717553411508,0.59020893,70957.0,70956.0,0.1]
[1717553411728,0.59020893,70957.0,70956.0,0.103]
[1717553413795,0.59020893,70957.0,70956.0,0.003]
[1717553414801,0.59020893,70957.0,70956.0,0.103]
[1717553415223,0.60727214,70957.0,70956.0,0.003]
[1717553416054,0.60727214,70957.0,70956.0,0.103]
[1717553417085,0.60727214,70957.0,70956.0,0.003]
[1717553418312,0.60727214,70957.0,70956.0,0.103]
[1717553419856,0.60727214,70957.0,70956.0,0.003]
[1717553420092,0.60727214,70957.0,70956.0,0.103]
[1717553420733,0.98913214,70957.0,70956.0,0.003]
[1717553420936,0.98913214,70957.0,70953.0,0.1]
[1717553420937,0.422808,70954.0,70953.0,0.1]
[1717553421143,0.281892,70949.0,70948.0,0.1]
[1717553421354,0.42631093,70949.0,70948.0,0.1]
[1717553421565,0.44931093,70949.0,70948.0,0.1]
[1717553422864,0.59025693,70949.0,70948.0,0.108]
[1717553423077,0.59125693,70949.0,70948.0,0.119]
[1717553428191,0.87314893,70949.0,70948.0,0.119]
[1717553428358,0.59125693,70949.0,70948.0,0.119]
[1717553428553,0.59125693,70949.0,70948.0,0.019]
[1717553428936,0.59025693,70949.0,70948.0,0.108]
[1717553429194,0.59025693,70949.0,70948.0,0.1]
[1717553429533,0.59025693,70949.0,70948.0,0.103]
[1717553429751,0.59125693,70949.0,70948.0,0.11]
[1717553430572,0.59125693,70949.0,70948.0,0.01]
[1717553431000,0.59025693,70949.0,70948.0,0.003]
[1717553431508,0.59125693,70949.0,70948.0,0.009]
[1717553431859,0.59125693,70949.0,70948.0,0.109]
[1717553433499,0.59125693,70949.0,70948.0,0.009]
[1717553433715,0.61625183,70949.0,70948.0,0.109]
[1717553433936,0.91542807,70949.0,70948.0,0.009]
[1717553439379,0.91542807,70949.0,70948.0,0.009946]
[1717553442739,0.70484,70938.0,70937.0,0.04218854]
[1717553442951,0.42291,70937.0,70936.0,0.1]
[1717553443166,0.87226893,70937.0,70936.0,0.1]
[1717553443376,0.422922,70935.0,70934.0,0.1]
[1717553443608,0.56734093,70935.0,70934.0,0.1]
[1717553443827,0.59034093,70935.0,70934.0,0.1]
[1717553444978,0.44936693,70935.0,70934.0,0.1]
[1717553445198,0.44936693,70935.0,70934.0,0.004]
[1717553445380,0.59034093,70935.0,70934.0,0.004]
[1717553445837,0.59034093,70935.0,70923.0,0.0668]
[1717553445844,0.1,70929.0,70920.0,0.1]
[1717553446057,0.0668,70921.0,70920.0,0.1]
[1717553446275,0.35221993,70921.0,70920.0,0.1]
[1717553446489,0.141007,70918.0,70917.0,0.1767]
[1717553446740,0.28542593,70918.0,70917.0,0.0767]
[1717553446991,0.30842593,70918.0,70917.0,0.1767]
[1717553447199,0.30842593,70918.0,70917.0,0.0767]
[1717553447417,0.30842593,70918.0,70917.0,0.1767]
[1717553447630,0.30842593,70918.0,70917.0,0.0767]
[1717553447836,0.30842593,70918.0,70917.0,0.1767]
[1717553449127,0.30942593,70918.0,70917.0,0.1767]
[1717553449334,0.30942593,70918.0,70917.0,0.1797]
[1717553452395,0.30942593,70918.0,70917.0,0.3797]
[1717553452625,0.30942593,70918.0,70917.0,0.3997]
[1717553452626,0.001,70918.0,70917.0,0.3997]
[1717553452840,0.001,70918.0,70917.0,0.6304]
[1717553453064,0.001,70918.0,70917.0,0.68258854]
[1717553453283,0.001,70918.0,70917.0,0.6304]
[1717553453502,0.001,70918.0,70917.0,0.67249291]
[1717553453723,0.001,70918.0,70917.0,0.66949291]
[1717553453971,0.002,70918.0,70917.0,0.6414]
[1717553454622,0.001,70918.0,70917.0,0.6274]
[1717553454859,0.01682134,70924.0,70917.0,0.6274]
[1717553455074,0.281936,70938.0,70934.0,0.1]
[1717553455307,0.140978,70933.0,70932.0,0.1]
[1717553455741,0.163978,70933.0,70932.0,0.1]
[1717553456202,0.30839693,70933.0,70932.0,0.1]
[1717553456629,0.30716293,70933.0,70932.0,0.1]
[1717553457047,0.30716293,70933.0,70932.0,0.101]
[1717553457048,0.31116293,70933.0,70932.0,0.101]
[1717553457678,0.32516293,70933.0,70932.0,0.102]
[1717553458445,0.31116293,70933.0,70932.0,0.101]
[1717553458643,0.32516293,70933.0,70932.0,0.102]
[1717553459277,0.31116293,70933.0,70932.0,0.101]
[1717553460275,0.30716293,70933.0,70932.0,0.1]
[1717553460418,0.31116293,70933.0,70932.0,0.1]
[1717553460618,0.31716293,70933.0,70932.0,0.101]
[1717553460828,0.31316293,70933.0,70932.0,0.101]
[1717553461004,0.31316293,70933.0,70932.0,0.102]
[1717553461209,0.31916293,70933.0,70932.0,0.302]
[1717553461421,0.31916293,70933.0,70932.0,0.102]
[1717553463425,0.38596293,70933.0,70932.0,0.102]
[1717553465727,0.1576,70932.0,70924.0,0.1]
[1717553465939,0.207794,70925.0,70924.0,0.1]
[1717553466168,0.35221293,70925.0,70924.0,0.1]
[1717553466380,0.141001,70921.0,70920.0,0.1]
[1717553466602,0.30841993,70921.0,70920.0,0.1]
[1717553466810,0.141009,70917.0,70916.0,0.1]
[1717553467015,0.28542793,70917.0,70916.0,0.1]
[1717553468100,0.29342793,70917.0,70916.0,0.1]
[1717553468527,0.29342793,70917.0,70916.0,0.3]
[1717553468739,0.29342793,70917.0,70916.0,0.1]
[1717553468949,0.29342793,70917.0,70916.0,0.3]
[1717553469149,0.29342793,70917.0,70916.0,0.32]
[1717553470515,0.29342793,70917.0,70916.0,0.3]
[1717553470992,0.15241893,70917.0,70916.0,0.32]
[1717553471205,0.008,70917.0,70916.0,0.6198]
[1717553471638,0.008,70917.0,70916.0,0.760811]
[1717553471849,0.008,70917.0,70916.0,0.770811]
[1717553472063,0.008,70917.0,70916.0,0.760811]
[1717553473110,0.005,70917.0,70916.0,0.760811]
[1717553473329,0.14098,70932.0,70928.0,0.2]
[1717553473547,0.14441893,70931.0,70928.0,0.1]
[1717553473755,0.28540093,70931.0,70929.0,0.3]
[1717553474371,0.28540093,70931.0,70929.0,0.2]
[1717553474548,0.28540093,70931.0,70929.0,0.3]
[1717553474787,0.140984,70930.0,70928.0,0.103]
[1717553475001,0.140984,70930.0,70929.0,0.101]
[1717553475179,0.163984,70930.0,70929.0,0.001]
[1717553475428,0.239084,70930.0,70929.0,0.001]
[1717553475640,0.239084,70930.0,70929.0,0.101]
[1717553476271,0.239084,70930.0,70929.0,0.1]
[1717553476272,0.390184,70930.0,70929.0,0.1]
[1717553476452,0.53460293,70930.0,70929.0,0.1]
[1717553476696,0.53560293,70930.0,70929.0,0.102]
[1717553476953,0.53560293,70930.0,70929.0,0.1]
[1717553477166,0.53560293,70930.0,70926.0,0.1]
[1717553477167,0.14099,70927.0,70926.0,0.1]
[1717553477379,0.28540893,70927.0,70926.0,0.1]
[1717553477609,0.30840893,70927.0,70926.0,0.1]
[1717553477838,0.140994,70925.0,70924.0,0.1]
[1717553478095,0.30841293,70925.0,70924.0,0.1]
[1717553478317,0.30841293,70925.0,70918.0,0.2828]
[1717553478318,0.16741893,70925.0,70922.0,0.1]
[1717553478554,0.16741893,70924.0,70923.0,0.1]